bitfinex-derivatives/quotes_BTCF0:USTF0_20241003
["timestamp","ask_amount","ask_price","bid_price","bid_amount"]
[1727995864877,0.082148,60869.0,60864.0,0.272154]
[1727995865079,0.0038,60875.0,60868.0,0.19]
[1727995865274,0.0308,60876.0,60871.0,0.04922301]
[1727995865584,0.442942,60873.0,60872.0,0.04922301]
[1727995866175,0.3608,60873.0,60872.0,0.04922301]
[1727995866377,0.3608,60873.0,60872.0,0.272143]
[1727995866584,0.0038,60878.0,60877.0,0.082136]
[1727995866881,0.0038,60882.0,60877.0,0.272136]
[1727995867081,0.411927,60885.0,60880.0,0.06560809]
[1727995867082,0.082127,60885.0,60880.0,0.06560809]
[1727995867284,0.082127,60885.0,60883.0,0.049206]
[1727995867582,0.38749999,60889.0,60883.0,0.082127]
[1727995867891,0.442912,60895.0,60886.0,0.049206]
[1727995868080,0.00246455,60896.0,60891.0,0.19]
[1727995868282,0.00246455,60896.0,60895.0,0.19]
[1727995869789,0.00246455,60896.0,60894.0,0.02464551]
[1727995870100,0.00246455,60896.0,60893.0,0.082114]
[1727995870274,0.00446455,60896.0,60895.0,0.001]
[1727995870893,0.00646455,60896.0,60895.0,0.001]
[1727995871586,0.00446455,60896.0,60895.0,0.001]
[1727995871887,0.00646455,60896.0,60895.0,0.002]
[1727995872393,0.00646455,60896.0,60895.0,0.001]
[1727995872889,0.00646455,60896.0,60895.0,0.002]
[1727995873578,0.08857555,60896.0,60895.0,0.002]
[1727995874983,0.082118,60891.0,60884.0,0.082126]
[1727995875183,0.0631,60890.0,60884.0,0.082126]
[1727995875391,0.0631,60890.0,60884.0,0.272126]
[1727995875788,0.082118,60891.0,60884.0,0.272126]
[1727995876599,0.002,60890.0,60886.0,0.001]
[1727995876986,0.087118,60891.0,60886.0,0.001]
[1727995877185,0.087118,60891.0,60884.0,0.273126]
[1727995877186,0.084118,60891.0,60884.0,0.273126]
[1727995877386,0.084118,60891.0,60884.0,0.274126]
[1727995877387,0.087118,60891.0,60884.0,0.274126]
[1727995878089,0.087118,60891.0,60886.0,0.001]
[1727995878795,0.085118,60891.0,60886.0,0.001]
[1727995878989,0.089118,60891.0,60886.0,0.002]
[1727995879590,0.089118,60891.0,60886.0,0.001]
[1727995880300,0.086118,60891.0,60886.0,0.001]
[1727995880495,0.089118,60891.0,60886.0,0.002]
[1727995885090,0.089118,60891.0,60888.0,0.19]
[1727995885495,0.007,60891.0,60888.0,0.19]
[1727995886990,0.004,60891.0,60888.0,0.19]
[1727995887289,0.004,60891.0,60888.0,0.191]
[1727995887290,0.007,60891.0,60888.0,0.191]
[1727995887889,0.007,60891.0,60890.0,0.082119]
[1727995888200,0.003,60891.0,60890.0,0.082119]
[1727995888396,0.006,60891.0,60890.0,1.402119]
[1727995888985,0.006,60891.0,60890.0,1.894799]
[1727995889185,0.006,60891.0,60890.0,2.494799]
[1727995889399,0.006,60891.0,60890.0,2.495799]
[1727995890194,0.006,60891.0,60890.0,2.496799]
[1727995894298,0.006,60891.0,60890.0,2.52110815]
[1727995895801,0.006,60891.0,60890.0,1.92110815]
[1727995896499,0.006,60891.0,60890.0,2.52110815]
[1727995896700,0.00626455,60896.0,60895.0,0.082112]
[1727995896903,0.0038,60903.0,60902.0,0.082103]
[1727995897113,0.082096,60907.0,60906.0,0.082097]
[1727995897310,0.082096,60907.0,60906.0,0.272097]
[1727995898103,0.38497658,60912.0,60907.0,0.082095]
[1727995898104,0.3608,60912.0,60907.0,0.082095]
[1727995898308,0.082093,60910.0,60907.0,0.082095]
[1727995898501,0.082093,60910.0,60909.0,0.19]
[1727995898898,0.082093,60910.0,60909.0,0.272093]
[1727995899095,0.0302,60917.0,60909.0,0.19]
[1727995899402,0.112283,60917.0,60916.0,0.19]
[1727995900105,0.0302,60917.0,60913.0,0.082088]
[1727995900312,0.082086,60915.0,60913.0,0.082088]
[1727995901006,0.082086,60915.0,60912.0,0.19]
[1727995901201,0.082086,60915.0,60909.0,0.02457397]
[1727995901400,0.082086,60915.0,60909.0,0.10666697]
[1727995901906,0.082086,60915.0,60909.0,0.02457397]
[1727995902096,0.082086,60915.0,60910.0,0.082091]
[1727995902608,0.082086,60915.0,60913.0,0.001]
[1727995903104,0.0302,60917.0,60913.0,0.001]
[1727995903295,0.05538244,60923.0,60916.0,0.19]
[1727995903608,0.13745744,60923.0,60916.0,0.272083]
[1727995904607,0.082076,60922.0,60916.0,0.272083]
[1727995904908,0.3608,60920.0,60916.0,0.082083]
[1727995905205,0.0322,60926.0,60921.0,0.082076]
[1727995905401,0.0322,60926.0,60923.0,0.19]
[1727995905601,0.0322,60926.0,60923.0,0.272074]
[1727995906705,0.0322,60926.0,60923.0,0.29609477]
[1727995906909,0.114271,60926.0,60923.0,0.29609477]
[1727995907203,0.114271,60926.0,60923.0,0.29709477]
[1727995907715,0.114271,60926.0,60923.0,0.29809477]
[1727995909807,0.082072,60925.0,60923.0,0.21602077]
[1727995910009,0.082073,60924.0,60923.0,0.21602077]
[1727995911303,0.114271,60926.0,60923.0,0.21602077]
[1727995911502,0.082073,60924.0,60923.0,0.02602077]
[1727995911702,0.082073,60924.0,60923.0,0.002]
[1727995911908,0.112373,60924.0,60923.0,0.002]
[1727995912103,0.112373,60924.0,60923.0,0.001]
[1727995912305,0.112373,60924.0,60923.0,0.002]
[1727995919719,1.12274,60924.0,60910.0,0.00246252]
[1727995920014,0.082088,60913.0,60910.0,0.02624973]
[1727995920214,0.19,60916.0,60910.0,0.00246252]
[1727995920215,0.082091,60911.0,60910.0,0.00246252]
[1727995921611,0.442891,60911.0,60910.0,0.00346252]
[1727995922312,0.442891,60911.0,60910.0,0.0270568]
[1727995922515,0.444891,60911.0,60910.0,0.00346252]
[1727995923510,0.443891,60911.0,60910.0,0.00346252]
[1727995923720,0.445891,60911.0,60910.0,0.00346252]
[1727995924314,0.444891,60911.0,60910.0,0.00346252]
[1727995924529,0.444891,60911.0,60910.0,0.00446252]
[1727995924530,0.085091,60911.0,60910.0,0.00446252]
[1727995924722,0.115191,60911.0,60910.0,0.00446252]
[1727995925708,0.114191,60911.0,60910.0,0.00446252]
[1727995926025,0.084091,60911.0,60910.0,0.00446252]
[1727995926213,0.083091,60911.0,60910.0,0.00346252]
[1727995926411,0.084091,60911.0,60910.0,0.00446252]
[1727995926612,0.002,60911.0,60910.0,0.19446252]
[1727995926812,0.002,60911.0,60910.0,0.27555452]
[1727995926813,0.001,60911.0,60910.0,0.27555452]
[1727995927009,0.002,60911.0,60910.0,0.27655452]
[1727995929119,0.001,60911.0,60910.0,0.32452939]
[1727995929312,0.002,60911.0,60910.0,0.32552939]
[1727995929707,0.002,60911.0,60910.0,0.19346252]
[1727995930313,0.002,60911.0,60910.0,0.00346252]
[1727995930719,0.002,60911.0,60910.0,0.19346252]
[1727995930914,0.002,60911.0,60910.0,0.19246252]
[1727995930915,0.001,60911.0,60910.0,0.19246252]
[1727995931118,0.002,60911.0,60910.0,0.19346252]
[1727995932230,0.002,60911.0,60910.0,0.19246252]
[1727995932527,0.002,60911.0,60910.0,0.19346252]
[1727995933410,0.002,60911.0,60910.0,0.19446252]
[1727995934218,0.634891,60911.0,60910.0,0.00446252]
[1727995934527,0.695391,60911.0,60910.0,0.00446252]
[1727995934716,1.187911,60911.0,60910.0,0.00446252]
[1727995937326,0.002,60911.0,60910.0,0.00446252]
[1727995937527,0.002,60911.0,60910.0,0.11845452]
[1727995938433,0.001,60911.0,60910.0,0.03536252]
[1727995938727,0.275091,60911.0,60910.0,0.00346252]
[1727995939520,0.274091,60911.0,60910.0,0.00346252]
[1727995939713,0.275091,60911.0,60910.0,0.00346252]
[1727995940124,0.273091,60911.0,60910.0,0.00346252]
[1727995940328,0.275091,60911.0,60910.0,0.00446252]
[1727995941234,0.085091,60911.0,60910.0,0.00446252]
[1727995941423,0.003,60911.0,60910.0,0.00446252]
[1727995942316,0.003,60911.0,60910.0,0.00346252]
[1727995942523,0.003,60911.0,60910.0,0.00446252]
[1727995942920,0.085091,60911.0,60910.0,0.00446252]
[1727995943720,0.275091,60911.0,60910.0,0.00446252]
[1727995944628,0.635891,60911.0,60910.0,0.00446252]
[1727995946131,0.68235704,60911.0,60910.0,0.00446252]
[1727995946731,0.68035704,60911.0,60910.0,0.00346252]
[1727995946933,0.68235704,60911.0,60910.0,0.00446252]
[1727995947527,0.68235704,60911.0,60910.0,0.00346252]
[1727995947528,0.68035704,60911.0,60910.0,0.00346252]
[1727995947827,0.68235704,60911.0,60910.0,0.00446252]
[1727995948027,0.0821,60904.0,60903.0,0.0038]
[1727995948226,0.5508,60904.0,60896.0,0.0038]
[1727995948425,0.082113,60895.0,60893.0,0.0038]
[1727995948630,0.082113,60895.0,60890.0,0.112518]
[1727995949026,0.082113,60895.0,60890.0,0.13649082]
[1727995949736,0.19,60898.0,60891.0,0.082116]
[1727995949934,0.082107,60899.0,60896.0,0.003]
[1727995950533,0.082109,60897.0,60896.0,0.003]
[1727995951334,0.082109,60897.0,60891.0,0.082116]
[1727995951528,0.082109,60897.0,60896.0,0.001]
[1727995952122,0.082109,60897.0,60896.0,0.004]
[1727995952934,0.085904,60901.0,60896.0,0.193]
[1727995953140,0.082107,60899.0,60896.0,0.194]
[1727995953723,0.082107,60899.0,60896.0,0.004]
[1727995953927,0.082107,60899.0,60896.0,0.05197487]
[1727995954129,0.082109,60897.0,60896.0,0.004]
[1727995955038,0.082109,60897.0,60896.0,0.001]
[1727995955243,0.082109,60897.0,60896.0,0.004]
[1727995963539,0.3608,60904.0,60896.0,0.194]
[1727995963740,0.3608,60904.0,60897.0,0.19]
[1727995964048,0.442901,60904.0,60896.0,0.08611]
[1727995964347,0.442901,60904.0,60898.0,1.32]
[1727995964930,0.442901,60904.0,60899.0,0.0324]
[1727995965441,0.0038,60912.0,60903.0,0.19]
[1727995965738,0.0038,60913.0,60912.0,0.082089]
[1727995965944,0.326,60926.0,60915.0,0.19]
[1727995965945,0.0038,60920.0,60915.0,0.19]
[1727995966241,0.326,60926.0,60915.0,0.19]
[1727995966242,0.3298,60926.0,60916.0,0.0324]
[1727995966435,0.02839082,60926.0,60916.0,0.0324]
[1727995966836,0.082077,60921.0,60916.0,0.0324]
[1727995967438,0.002,60920.0,60916.0,0.0324]
[1727995968145,0.084077,60921.0,60916.0,0.0334]
[1727995968737,0.086077,60921.0,60917.0,0.0302]
[1727995969244,0.004,60921.0,60919.0,0.19]
[1727995969445,0.004,60921.0,60917.0,0.112282]
[1727995969745,0.002,60920.0,60919.0,0.19]
[1727995970336,0.002,60921.0,60919.0,0.19]
[1727995970537,0.004,60921.0,60919.0,0.191]
[1727995971137,0.002,60920.0,60919.0,0.191]
[1727995972352,0.002,60920.0,60919.0,0.192]
[1727995972645,0.002,60921.0,60919.0,0.191]
[1727995972951,0.002,60920.0,60919.0,0.192]
[1727995973651,0.004,60920.0,60919.0,0.192]
[1727995974149,0.004,60920.0,60919.0,0.002]
[1727995974348,0.002,60920.0,60919.0,0.001]
[1727995974571,0.002,60920.0,60919.0,0.002]
[1727995974967,0.004,60920.0,60919.0,0.002]
[1727995976073,0.3648,60920.0,60919.0,0.002]
[1727995980074,0.004,60920.0,60919.0,0.002]
[1727995981073,0.3648,60920.0,60919.0,0.002]
[1727995981676,0.446878,60920.0,60919.0,0.002]
[1727995983073,0.3648,60920.0,60919.0,0.002]
[1727995984677,0.3648,60920.0,60919.0,0.08408]
[1727995984678,0.004,60920.0,60919.0,0.08408]
[1727995986081,0.0038,60926.0,60919.0,0.08408]
[1727995986082,0.0038,60926.0,60919.0,1.17652]
[1727995986281,0.3608,60927.0,60926.0,0.08207]
[1727995986783,0.00246315,60930.0,60929.0,0.082066]
[1727995987084,0.00246315,60930.0,60929.0,0.272066]
[1727995988084,0.08452815,60930.0,60929.0,0.272066]
[1727995988584,0.08452815,60930.0,60929.0,0.273066]
[1727995988989,0.08552815,60930.0,60929.0,0.274066]
[1727995989379,0.08552815,60930.0,60929.0,0.002]
[1727995993284,0.44632815,60930.0,60929.0,0.002]
[1727995993793,0.93868815,60930.0,60929.0,0.002]
[1727995994285,0.082074,60923.0,60913.0,0.19246215]
[1727995994487,0.082074,60923.0,60917.0,0.19]
[1727995995185,0.082074,60923.0,60921.0,0.19]
[1727995995590,0.083074,60923.0,60921.0,0.19]
[1727995997694,0.084074,60923.0,60921.0,0.191]
[1727995997896,0.087074,60923.0,60921.0,0.191]
[1727995998293,0.087074,60923.0,60921.0,0.001]
[1727995998701,0.086074,60923.0,60921.0,0.002]
[1727995998993,0.082076,60922.0,60921.0,0.002]
[1727995999195,0.442876,60922.0,60921.0,0.002]
[1727995999499,0.475476,60922.0,60921.0,0.002]
[1727995999794,0.52160958,60922.0,60921.0,0.002]
[1727996000190,0.52260958,60922.0,60921.0,0.002]
[1727996001296,0.52260958,60922.0,60921.0,0.001]
[1727996001505,0.52460958,60922.0,60921.0,0.002]
[1727996003986,0.52441863,60922.0,60921.0,0.002]
[1727996005989,0.478476,60922.0,60921.0,0.002]
[1727996009409,0.117676,60922.0,60921.0,0.002]
[1727996009701,0.839276,60922.0,60921.0,0.002]
[1727996011402,0.806676,60922.0,60921.0,0.002]
[1727996016704,0.7246,60922.0,60921.0,0.084077]
[1727996022103,0.7246,60922.0,60921.0,0.002]
[1727996022310,0.085076,60922.0,60921.0,0.002]
[1727996027812,0.10865692,60922.0,60921.0,0.002]
[1727996028923,0.46945692,60922.0,60921.0,0.002]
[1727996032610,0.085076,60922.0,60921.0,0.002]
[1727996032812,0.445876,60922.0,60921.0,0.002]
[1727996034315,0.085076,60922.0,60921.0,0.002]
[1727996038123,0.445876,60922.0,60921.0,0.002]
[1727996043432,0.3638,60922.0,60921.0,0.002]
[1727996043639,0.3638,60922.0,60921.0,0.122]
[1727996044228,0.3638,60922.0,60921.0,0.17097487]
[1727996046336,0.3638,60922.0,60921.0,0.05097487]
[1727996046337,0.565876,60922.0,60921.0,0.05097487]
[1727996046536,0.565876,60922.0,60921.0,0.002]
[1727996046747,0.445876,60922.0,60921.0,0.002]
[1727996051240,0.49125455,60922.0,60921.0,0.002]
[1727996051438,0.13045455,60922.0,60921.0,0.002]
[1727996058449,0.085076,60922.0,60921.0,0.002]
[1727996059151,0.445876,60922.0,60921.0,0.002]
[1727996060363,0.003,60922.0,60921.0,1.14341487]
[1727996060550,0.003,60922.0,60921.0,1.176517]
[1727996060852,0.0038,60929.0,60928.0,0.082068]
[1727996061048,0.3646,60936.0,60928.0,2.5324]
[1727996061248,0.3608,60936.0,60934.0,0.12]
[1727996062854,0.3608,60936.0,60934.0,0.121]
[1727996063146,0.3608,60936.0,60934.0,0.20306]
[1727996063649,0.3608,60936.0,60934.0,0.20406]
[1727996064150,0.3608,60937.0,60934.0,0.20406]
[1727996065847,0.10615308,60938.0,60934.0,0.20406]
[1727996066050,0.3608,60937.0,60934.0,0.20406]
[1727996067449,0.10615308,60938.0,60934.0,0.20406]
[1727996067649,0.3608,60937.0,60934.0,0.20406]
[1727996068148,0.3608,60937.0,60934.0,0.08406]
[1727996068346,0.3608,60937.0,60934.0,0.20406]
[1727996072253,0.38433369,60937.0,60934.0,0.20406]
[1727996073355,0.38433369,60937.0,60934.0,0.002]
[1727996074357,0.082057,60936.0,60934.0,0.002]
[1727996075161,0.082057,60936.0,60934.0,0.122]
[1727996076867,0.3608,60937.0,60934.0,0.122]
[1727996080471,0.3608,60937.0,60934.0,0.20406]
[1727996081352,0.3608,60937.0,60934.0,0.25311824]
[1727996083360,0.082057,60936.0,60934.0,0.25311824]
[1727996084767,0.082057,60936.0,60934.0,0.20406]
[1727996086057,0.0038,60942.0,60934.0,0.20406]
[1727996086058,0.082051,60941.0,60934.0,0.20406]
[1727996086267,0.082054,60939.0,60934.0,0.20406]
[1727996086458,0.0038,60942.0,60934.0,0.122]
[1727996086660,0.082052,60940.0,60936.0,0.06535932]
[1727996086867,0.082052,60940.0,60939.0,0.082053]
[1727996087965,0.082052,60940.0,60939.0,0.202053]
[1727996088956,0.082052,60940.0,60939.0,0.203053]
[1727996089164,0.082052,60940.0,60939.0,0.204053]
[1727996094073,0.082052,60940.0,60939.0,0.122]
[1727996094770,0.082052,60940.0,60939.0,0.002]
[1727996097979,0.469121,60944.0,60939.0,0.122]
[1727996098279,0.46696099,60944.0,60940.0,0.04910937]
[1727996098882,0.46696099,60944.0,60942.0,0.12]
[1727996100088,0.46696099,60944.0,60941.0,0.04910937]
[1727996100382,0.082049,60942.0,60941.0,0.04910937]
[1727996101367,0.38695499,60944.0,60942.0,0.001]
[1727996101566,0.38491499,60944.0,60942.0,0.001]
[1727996102174,0.38491499,60944.0,60941.0,0.05010937]
[1727996102369,0.38491499,60944.0,60942.0,0.001]
[1727996103183,0.38491499,60944.0,60942.0,0.122]
[1727996103879,0.38491499,60944.0,60943.0,0.082047]
[1727996104271,0.38491499,60944.0,60943.0,0.14740632]
[1727996104672,0.38491499,60944.0,60943.0,0.082047]
[1727996105082,0.38491499,60944.0,60943.0,0.083047]
[1727996105473,0.38491499,60944.0,60943.0,0.084047]
[1727996108589,0.02411499,60944.0,60943.0,0.084047]
[1727996108774,0.082044,60946.0,60943.0,0.084047]
[1727996108974,0.082044,60946.0,60945.0,0.0490184]
[1727996110675,0.082044,60946.0,60945.0,0.0500184]
[1727996111075,0.082044,60946.0,60945.0,0.1700184]
[1727996111374,0.082044,60946.0,60945.0,0.121]
[1727996112382,0.082044,60946.0,60945.0,0.122]
[1727996112583,0.10650402,60946.0,60945.0,0.002]
[1727996114383,0.10650402,60946.0,60937.0,0.0038]
[1727996114384,0.082054,60938.0,60937.0,0.0038]
[1727996114586,0.082057,60937.0,60932.0,0.1690184]
[1727996114787,0.0327,60936.0,60932.0,0.12]
[1727996115284,0.12,60935.0,60931.0,0.4098184]
[1727996115486,0.12,60935.0,60931.0,0.0490184]
[1727996115681,0.12,60935.0,60930.0,0.1310824]
[1727996115886,0.03478001,60936.0,60934.0,0.12]
[1727996115887,0.0327,60936.0,60934.0,0.12]
[1727996117098,0.0327,60936.0,60934.0,0.121]
[1727996117885,0.0347,60936.0,60934.0,0.121]
[1727996118479,0.0327,60936.0,60934.0,0.121]
[1727996118682,0.0347,60936.0,60934.0,0.122]
[1727996119387,0.0347,60936.0,60934.0,0.002]
[1727996119595,0.082058,60935.0,60934.0,0.002]
[1727996121288,0.083058,60935.0,60934.0,0.002]
[1727996121987,0.084058,60935.0,60934.0,0.002]
[1727996125585,0.444858,60935.0,60934.0,0.002]
[1727996125981,0.084058,60935.0,60934.0,0.002]
[1727996126186,0.444858,60935.0,60934.0,0.002]
[1727996126389,0.444858,60935.0,60934.0,0.0510184]
[1727996127188,0.084058,60935.0,60934.0,0.0510184]
[1727996127388,0.444858,60935.0,60934.0,0.0510184]
[1727996129000,0.084058,60935.0,60934.0,0.0510184]
[1727996129395,0.444858,60935.0,60934.0,0.0510184]
[1727996130894,0.444858,60935.0,60934.0,0.002]
[1727996132491,0.3628,60935.0,60934.0,0.002]
[1727996133094,0.002,60935.0,60934.0,0.002]
[1727996134904,0.084058,60935.0,60934.0,0.002]
[1727996136808,0.002,60935.0,60934.0,0.002]
[1727996137105,0.002,60935.0,60934.0,0.0510184]
[1727996138101,0.002,60935.0,60934.0,0.002]
[1727996139002,0.002,60935.0,60934.0,0.05098341]
[1727996139201,0.002,60935.0,60934.0,0.002]
[1727996139410,0.002,60935.0,60934.0,0.05098691]
[1727996139597,0.002,60935.0,60934.0,0.002]
[1727996141193,0.002,60935.0,60934.0,0.06735932]
[1727996141599,0.002,60935.0,60934.0,0.002]
[1727996142609,0.002,60935.0,60934.0,0.14676]
[1727996142994,0.002,60935.0,60934.0,0.13307465]
[1727996143206,0.002,60935.0,60934.0,0.08406]
[1727996164819,0.002,60935.0,60934.0,0.13309438]
[1727996165621,0.002,60935.0,60934.0,0.08406]
[1727996167728,0.002,60935.0,60934.0,0.13309974]
[1727996168226,0.002,60935.0,60934.0,0.08406]
[1727996171633,0.002,60935.0,60934.0,0.16582718]
[1727996172141,0.002,60935.0,60934.0,0.2693316]
[1727996172336,0.002,60935.0,60934.0,0.16582718]
[1727996172535,0.002,60935.0,60934.0,0.26934349]
[1727996173436,0.002,60935.0,60934.0,0.16582718]
[1727996174831,0.084058,60935.0,60934.0,0.08376718]
[1727996175039,0.145858,60935.0,60934.0,0.08376718]
[1727996175240,0.145858,60935.0,60934.0,0.002]
[1727996177334,0.145858,60935.0,60934.0,0.122]
[1727996178841,0.0638,60935.0,60934.0,0.122]
[1727996179143,0.002,60935.0,60934.0,0.69638]
[1727996179335,0.0038,60942.0,60941.0,0.08205]
[1727996179530,0.082041,60948.0,60944.0,0.082045]
[1727996179840,0.082041,60948.0,60947.0,0.12]
[1727996181545,0.10602142,60948.0,60947.0,0.12]
[1727996181747,0.10702142,60948.0,60947.0,0.121]
[1727996182140,0.10702142,60948.0,60947.0,0.122]
[1727996182741,0.10702142,60948.0,60947.0,0.002]
[1727996186935,0.46782142,60948.0,60947.0,0.002]
[1727996187547,0.58782142,60948.0,60947.0,0.002]
[1727996191250,1.08006142,60948.0,60947.0,0.002]
[1727996191550,1.68006142,60948.0,60947.0,0.002]
[1727996192435,1.68006142,60948.0,60940.0,0.0038]
[1727996192436,0.08205,60941.0,60940.0,0.0038]
[1727996192641,0.12,60941.0,60933.0,0.0038]
[1727996192845,0.574282,60947.0,60932.0,0.04904828]
[1727996192846,0.082061,60933.0,60932.0,0.04904828]
[1727996193150,0.082062,60932.0,60931.0,0.04904828]
[1727996193645,0.082062,60932.0,60929.0,0.00246171]
[1727996194354,0.082062,60932.0,60931.0,0.001]
[1727996194548,0.083062,60932.0,60931.0,0.002]
[1727996194753,0.083062,60932.0,60931.0,0.001]
[1727996195454,0.083062,60932.0,60929.0,0.00446171]
[1727996195645,0.082064,60931.0,60929.0,0.00446171]
[1727996196246,0.082064,60931.0,60929.0,0.00346171]
[1727996196944,0.084064,60931.0,60929.0,0.00446171]
[1727996197444,0.084064,60931.0,60929.0,0.00346171]
[1727996198046,0.002,60931.0,60930.0,0.61236]
[1727996198242,0.0038,60940.0,60931.0,0.082064]
[1727996198446,0.0038,60943.0,60939.0,0.202052]
[1727996198646,0.408042,60947.0,60942.0,0.12]
[1727996198647,0.43441919,60947.0,60942.0,0.12]
[1727996198842,0.10841919,60947.0,60945.0,0.12]
[1727996199246,0.10637919,60947.0,60945.0,0.12]
[1727996199446,0.082043,60946.0,60945.0,0.12]
[1727996200250,0.082043,60946.0,60945.0,0.121]
[1727996200745,0.083043,60946.0,60945.0,0.002]
[1727996201446,0.204043,60946.0,60945.0,0.002]
[1727996204653,0.564843,60946.0,60945.0,0.002]
[1727996207655,0.3628,60946.0,60945.0,0.002]
[1727996207958,0.3628,60946.0,60945.0,0.084045]
[1727996210852,0.3628,60946.0,60945.0,0.002]
[1727996211158,0.3628,60946.0,60945.0,0.115645]
[1727996212957,0.3628,60946.0,60945.0,0.0336]
[1727996214354,0.444843,60946.0,60945.0,0.0336]
[1727996220362,0.444843,60946.0,60945.0,0.002]
[1727996225268,0.444843,60946.0,60934.0,0.06540216]
[1727996225269,0.082058,60935.0,60934.0,0.06540216]
[1727996225455,0.082058,60935.0,60932.0,0.04896739]
[1727996225456,0.12,60935.0,60932.0,0.04896739]
[1727996225654,0.082067,60929.0,60927.0,0.04896739]
[1727996226364,0.082068,60928.0,60926.0,0.06786406]
[1727996226567,0.562869,60927.0,60926.0,0.0024619]
[1727996227164,0.562869,60927.0,60921.0,0.049031]
[1727996227165,0.4808,60927.0,60921.0,0.049031]
[1727996227467,0.4808,60927.0,60901.0,0.45538102]
[1727996227468,0.4808,60922.0,60917.0,0.049031]
[1727996227666,0.082081,60918.0,60914.0,0.049031]
[1727996227860,0.12,60915.0,60914.0,0.049031]
[1727996228063,0.12,60915.0,60913.0,0.049031]
[1727996228257,0.12,60914.0,60913.0,0.04899338]
[1727996228872,0.12,60914.0,60905.0,0.04896221]
[1727996228873,0.082091,60911.0,60905.0,0.04896221]
[1727996229058,0.12,60906.0,60904.0,0.00246247]
[1727996229369,0.12,60905.0,60904.0,0.00246247]
[1727996229558,0.19,60905.0,60904.0,0.00246247]
[1727996229760,0.272099,60905.0,60904.0,0.00246247]
[1727996230663,0.272099,60905.0,60904.0,0.01046247]
[1727996231268,0.272099,60905.0,60904.0,0.00546247]
[1727996232165,0.274099,60905.0,60904.0,0.00246247]
[1727996232869,0.272099,60905.0,60904.0,0.00246247]
[1727996233075,0.274099,60905.0,60904.0,0.00246247]
[1727996234164,0.634899,60905.0,60904.0,0.00246247]
[1727996235263,0.65883368,60905.0,60904.0,0.00246247]
[1727996239273,0.29803368,60905.0,60904.0,0.00246247]
[1727996239481,0.65883368,60905.0,60904.0,0.00246247]
[1727996240070,0.3628,60905.0,60897.0,0.19]
[1727996240370,0.3628,60905.0,60902.0,0.082102]
[1727996240773,0.3628,60905.0,60903.0,0.082101]
[1727996241171,0.3628,60905.0,60904.0,0.1449]
[1727996241373,0.3608,60905.0,60904.0,0.1449]
[1727996241580,0.3608,60905.0,60904.0,1.4649]
[1727996241974,0.3608,60905.0,60904.0,0.1449]
[1727996242374,0.3628,60905.0,60904.0,0.0318]
[1727996245078,0.002,60905.0,60904.0,0.0318]
[1727996246178,0.002,60905.0,60901.0,0.0236113]
[1727996246383,0.002,60905.0,60900.0,0.082105]
[1727996247777,0.002,60905.0,60900.0,0.10561523]
[1727996247977,0.002,60905.0,60900.0,0.02351023]
[1727996248184,0.002,60905.0,60901.0,0.082104]
[1727996248480,0.55288001,60906.0,60896.0,0.0322]
[1727996248481,0.36288001,60906.0,60903.0,0.19]
[1727996248780,0.002,60905.0,60904.0,0.1124]
[1727996254083,0.082096,60907.0,60904.0,0.1124]
[1727996254286,0.002,60905.0,60904.0,0.1124]
[1727996255895,0.082096,60907.0,60905.0,0.082098]
[1727996256087,0.082096,60907.0,60905.0,0.1311318]
[1727996256587,0.082096,60907.0,60905.0,0.082098]
[1727996256783,0.082096,60907.0,60906.0,0.082097]
[1727996257179,0.082096,60907.0,60906.0,0.13115865]
[1727996257576,0.082096,60907.0,60906.0,0.082097]
[1727996257788,0.19,60907.0,60903.0,0.42618005]
[1727996257986,0.0821,60904.0,60903.0,0.42618005]
[1727996258486,0.082102,60903.0,60902.0,0.06538005]
[1727996259583,0.002,60904.0,60902.0,0.06538005]
[1727996259889,0.002,60904.0,60903.0,0.764701]
[1727996260084,0.0038,60909.0,60908.0,0.272095]
[1727996260284,0.0038,60913.0,60912.0,0.082089]
[1727996260485,0.082087,60914.0,60912.0,0.082089]
[1727996260688,0.082087,60914.0,60913.0,0.04907167]
[1727996261590,0.084087,60914.0,60912.0,0.13116067]
[1727996261785,0.084087,60914.0,60912.0,0.082089]
[1727996262284,0.084087,60914.0,60913.0,0.001]
[1727996262678,0.084087,60914.0,60913.0,0.083088]
[1727996263894,0.082087,60914.0,60913.0,0.082088]
[1727996264686,0.082087,60914.0,60913.0,0.083088]
[1727996265602,0.0038,60918.0,60914.0,0.082085]
[1727996265899,0.08454293,60919.0,60915.0,0.14747672]
[1727996266084,0.08454293,60919.0,60918.0,0.04904119]
[1727996266284,0.08454293,60919.0,60916.0,0.06539172]
[1727996266485,0.08454293,60919.0,60918.0,0.04903452]
[1727996267987,0.08454293,60919.0,60918.0,0.05003452]
[1727996268301,0.08454293,60919.0,60918.0,0.05103452]
[1727996268798,0.27454293,60919.0,60918.0,0.05103452]
[1727996268985,0.27454293,60919.0,60918.0,0.002]
[1727996279599,0.20454293,60919.0,60918.0,0.002]
[1727996289111,0.00246293,60919.0,60918.0,0.002]
[1727996289500,0.00246293,60919.0,60918.0,0.084081]
[1727996295914,0.00246293,60919.0,60918.0,0.27054015]
[1727996296118,0.00246293,60919.0,60918.0,0.16587059]
[1727996296313,0.00246293,60919.0,60918.0,0.27052508]